bitfinex/quotes_SOLUSD_20241225
["timestamp","ask_amount","ask_price","bid_price","bid_amount"]
[1735138556647,23.902374,198.77,198.7,9.75553995]
[1735138560358,23.902374,198.77,198.66,12.5843]
[1735138560653,23.902374,198.77,198.7,9.75553995]
[1735138560844,33.65791395,198.77,198.7,9.75553995]
[1735138561446,23.902374,198.77,198.71,9.75553995]
[1735138562159,23.902374,198.78,198.72,9.75553995]
[1735138562359,23.902374,198.78,198.73,9.75553995]
[1735138562567,0.12549,198.78,198.73,9.75553995]
[1735138562742,0.12549,198.78,198.72,9.75553995]
[1735138562940,0.12549,198.78,198.71,9.75553995]
[1735138563889,9.88102995,198.78,198.71,9.75553995]
[1735138567466,0.12549,198.78,198.72,9.75553995]
[1735138567952,0.12549,198.78,198.73,9.75553995]
[1735138568158,7.6227,198.8,198.74,9.75553995]
[1735138568465,7.6227,198.8,198.75,9.75553995]
[1735138569361,7.6227,198.8,198.74,9.75553995]
[1735138570366,7.6227,198.8,198.75,9.75553995]
[1735138571345,7.6227,198.8,198.74,9.75553995]
[1735138571548,17.37823995,198.8,198.73,9.75553995]
[1735138571773,17.37823995,198.8,198.72,9.75553995]
[1735138572275,17.37823995,198.8,198.73,9.75553995]
[1735138572979,17.37823995,198.8,198.69,12.582]
[1735138572980,33.65791395,198.79,198.69,12.582]
[1735138573288,33.65791395,198.79,198.72,9.75553995]
[1735138573979,33.65791395,198.79,198.69,12.582]
[1735138573980,9.75553995,198.78,198.65,12.5843]
[1735138574169,0.12549,198.75,198.68,20.0]
[1735138574360,23.902374,198.75,198.68,29.75553995]
[1735138574970,23.902374,198.75,198.69,9.75553995]
[1735138576976,33.65791395,198.73,198.66,9.75553995]
[1735138578377,23.902374,198.71,198.66,9.75553995]
[1735138578672,33.65791395,198.71,198.64,9.75553995]
[1735138578846,0.12549,198.69,198.63,9.75553995]
[1735138579262,9.88102995,198.69,198.62,9.75553995]
[1735138580480,0.12549,198.67,198.62,9.75553995]
[1735138580656,0.12549,198.67,198.61,9.75553995]
[1735138580855,0.12549,198.67,198.62,9.75553995]
[1735138581058,0.12549,198.67,198.63,9.75553995]
[1735138581968,0.12549,198.67,198.62,9.75553995]
[1735138582475,1.5554,198.72,198.64,9.75553995]
[1735138582680,1.5554,198.72,198.67,9.75553995]
[1735138582872,1.5554,198.72,198.68,9.75553995]
[1735138583186,1.5554,198.72,198.61,0.75495208]
[1735138583187,0.12549,198.71,198.67,9.75553995]
[1735138583882,1.5554,198.72,198.67,9.75553995]
[1735138584969,1.5554,198.72,198.68,9.75553995]
[1735138585981,9.75553995,198.75,198.68,9.75553995]
[1735138586185,23.776884,198.75,198.68,9.75553995]
[1735138588270,0.12549,198.74,198.68,9.75553995]
[1735138589881,0.12549,198.72,198.64,20.0]
[1735138590080,23.902374,198.72,198.66,9.75553995]
[1735138590308,0.12549,198.72,198.67,9.75553995]
[1735138590794,0.12549,198.72,198.68,9.75553995]
[1735138591496,0.12549,198.72,198.67,9.75553995]
[1735138593573,0.12549,198.72,198.66,9.75553995]
[1735138593780,0.12549,198.72,198.64,20.0]
[1735138594091,0.12549,198.72,198.67,9.75553995]
[1735138596868,0.12549,198.72,198.66,9.75553995]
[1735138601569,11.34403995,198.76,198.68,9.75553995]
[1735138602204,0.12549,198.74,198.68,9.75553995]
[1735138602612,23.776884,198.75,198.7,9.75553995]
[1735138602777,1.5885,198.76,198.71,9.75553995]
[1735138602979,0.12549,198.75,198.7,9.75553995]
[1735138603809,9.88102995,198.75,198.68,9.75553995]
[1735138604011,0.12549,198.73,198.68,9.75553995]
[1735138604290,0.12549,198.73,198.67,9.75553995]
[1735138605194,0.12549,198.73,198.68,9.75553995]
[1735138610110,1.5885,198.76,198.7,9.75553995]
[1735138610318,30.7916531,198.83,198.75,9.75553995]
[1735138610319,1.6272,198.82,198.75,9.75553995]
[1735138610803,1.6272,198.82,198.76,9.75553995]
[1735138610804,0.12549,198.81,198.76,9.75553995]
[1735138611491,23.902374,198.81,198.76,9.75553995]
[1735138611695,1.6272,198.82,198.77,9.75553995]
[1735138612217,33.05040499,198.83,198.78,9.75553995]
[1735138612218,26.99020499,198.83,198.78,9.75553995]
[1735138612382,26.99020499,198.83,198.79,9.75553995]
[1735138613505,0.12549,198.86,198.79,9.75553995]
[1735138613887,23.902374,198.86,198.79,9.75553995]
[1735138614483,23.902374,198.86,198.8,9.75553995]
[1735138615210,23.902374,198.86,198.79,9.75553995]
[1735138616800,0.12549,198.84,198.78,9.75553995]
[1735138617007,0.12549,198.84,198.79,9.75553995]
[1735138617194,0.12549,198.84,198.8,9.75553995]
[1735138617394,0.12549,198.85,198.78,9.75553995]
[1735138617588,9.88102995,198.85,198.78,9.75553995]
[1735138617790,0.12549,198.85,198.78,9.75553995]
[1735138618001,0.12549,198.85,198.79,9.75553995]
[1735138620807,0.12549,198.85,198.75,1.5478]
[1735138620808,9.88102995,198.85,198.75,1.5478]
[1735138621008,0.12549,198.82,198.73,20.0]
[1735138621204,0.12549,198.82,198.75,9.75553995]
[1735138622818,0.12549,198.81,198.75,9.75553995]
[1735138623915,0.12549,198.82,198.75,9.75553995]
[1735138624113,23.902374,198.82,198.75,9.75553995]
[1735138627424,9.75553995,198.81,198.74,9.75553995]
[1735138627598,23.902374,198.8,198.74,9.75553995]
[1735138628120,23.902374,198.81,198.74,9.75553995]
[1735138628620,33.65791395,198.81,198.74,9.75553995]
[1735138630319,23.902374,198.81,198.74,9.75553995]
[1735138632218,23.902374,198.81,198.7,12.5816]
[1735138632399,33.65791395,198.81,198.74,9.75553995]
[1735138632600,33.65791395,198.81,198.73,9.75553995]
[1735138635222,33.65791395,198.81,198.66,3.59024149]
[1735138635223,8.0736,198.87,198.78,9.75553995]
[1735138635422,9.75553995,198.86,198.79,9.75553995]
[1735138635597,17.82913995,198.87,198.79,9.75553995]
[1735138635794,0.12549,198.86,198.79,9.75553995]
[1735138636727,17.82913995,198.87,198.8,9.75553995]
[1735138636899,0.12549,198.86,198.8,9.75553995]
[1735138637099,17.82913995,198.87,198.8,9.75553995]
[1735138637403,0.12549,198.86,198.8,9.75553995]
[1735138637912,0.12549,198.86,198.79,9.75553995]
[1735138638525,23.902374,198.86,198.79,9.75553995]
[1735138639429,33.65791395,198.86,198.79,9.75553995]
[1735138639925,23.902374,198.86,198.8,9.75553995]
[1735138640623,0.12549,198.86,198.81,9.75553995]
[1735138640927,1.6232,198.87,198.82,9.75553995]
[1735138641105,1.6232,198.87,198.83,9.75553995]
[1735138641523,26.98000906,198.91,198.84,9.75553995]
[1735138642026,26.98000906,198.91,198.85,9.75553995]
[1735138642228,0.12549,198.9,198.85,9.75553995]
[1735138642603,26.98000906,198.91,198.87,9.75553995]
[1735138642804,26.98000906,198.91,198.88,9.75553995]
[1735138643004,19.75553995,198.96,198.88,9.75553995]
[1735138643307,0.12549,198.95,198.88,9.75553995]
[1735138643725,9.88102995,198.95,198.88,9.75553995]
[1735138644231,23.776884,198.94,198.88,9.75553995]
[1735138645123,9.88102995,198.93,198.86,9.75553995]
[1735138645318,9.75553995,198.92,198.85,9.75553995]
[1735138645902,0.12549,198.91,198.85,9.75553995]
[1735138646107,0.12549,198.91,198.84,29.75553995]
[1735138646611,0.12549,198.91,198.85,9.75553995]
[1735138647919,9.88102995,198.93,198.86,9.75553995]
[1735138648119,23.776884,198.92,198.86,9.75553995]
[1735138648341,9.75553995,198.94,198.86,9.75553995]
[1735138648931,0.12549,198.92,198.85,9.75553995]
[1735138649118,9.75553995,198.93,198.85,9.75553995]
[1735138649525,23.776884,198.92,198.85,9.75553995]
[1735138651231,1.6402,198.97,198.89,9.75553995]
[1735138651419,1.6402,198.97,198.91,9.75553995]
[1735138651816,9.75553995,198.99,198.91,9.75553995]
[1735138653028,36.72257162,199.01,198.94,9.75553995]
[1735138653335,26.96703167,199.01,198.93,9.75553995]
[1735138653514,26.96703167,199.01,198.95,9.75553995]
[1735138655423,11.39573995,199.02,198.94,9.75553995]
[1735138655624,23.902374,199.01,198.93,9.75553995]
[1735138656643,33.65791395,199.01,198.93,9.75553995]
[1735138656843,1.6402,199.02,198.94,9.75553995]
[1735138657026,11.39573995,199.02,198.94,9.75553995]
[1735138658932,11.39573995,199.02,198.95,9.75553995]
[1735138662746,20.0,199.05,198.95,9.75553995]
[1735138662919,9.75553995,199.03,198.93,12.5669]
[1735138663126,9.75553995,199.01,198.93,9.75553995]
[1735138663638,0.12549,199.02,198.85,4.3134846]
[1735138663639,9.75553995,198.99,198.92,9.75553995]
[1735138663820,9.75553995,198.98,198.9,9.75553995]
[1735138664325,9.75553995,198.97,198.9,9.75553995]
[1735138664836,9.88102995,198.98,198.9,9.75553995]
[1735138665036,9.88102995,198.98,198.91,9.75553995]
[1735138666163,1.5629,198.99,198.93,9.75553995]
[1735138666453,11.31843995,198.99,198.92,9.75553995]
[1735138666959,9.88102995,198.98,198.87,12.5709]
[1735138667138,9.88102995,198.98,198.91,9.75553995]
[1735138667851,9.75553995,198.96,198.87,20.0]
[1735138668147,9.75553995,198.95,198.88,9.75553995]
[1735138669249,9.75553995,198.96,198.89,9.75553995]
[1735138670246,9.75553995,198.95,198.87,20.0]
[1735138670428,9.75553995,198.95,198.88,9.75553995]
[1735138673254,0.12549,198.96,198.9,9.75553995]
[1735138673757,0.12549,198.96,198.87,20.0]
[1735138673758,9.88102995,198.96,198.89,9.75553995]
[1735138673955,0.12549,198.96,198.9,9.75553995]
[1735138674126,9.88102995,198.97,198.87,20.0]
[1735138674332,9.75553995,198.96,198.89,9.75553995]
[1735138675134,9.88102995,198.97,198.9,9.75553995]
[1735138677664,0.12549,198.97,198.9,9.75553995]
[1735138678961,9.75553995,198.98,198.9,9.75553995]
[1735138679160,9.75553995,198.98,198.91,9.75553995]
[1735138680270,1.5629,198.99,198.93,9.75553995]
[1735138681277,1.5629,198.99,198.94,9.75553995]
[1735138681445,9.75553995,199.02,198.94,9.75553995]
[1735138682049,9.75553995,199.03,198.96,9.75553995]
[1735138682340,0.12549,199.03,198.96,9.75553995]
[1735138683139,0.12549,199.03,198.91,12.568]
[1735138683337,9.88102995,199.03,198.96,9.75553995]
[1735138685964,9.75553995,199.0,198.9,12.5591]
[1735138686171,9.75553995,198.99,198.91,9.75553995]
[1735138687081,9.75553995,198.98,198.91,9.75553995]
[1735138687368,9.75553995,198.97,198.9,9.75553995]
[1735138687761,9.75553995,198.97,198.89,9.75553995]
[1735138688451,9.75553995,198.95,198.88,9.75553995]
[1735138694351,11.30333995,198.96,198.89,9.75553995]
[1735138695069,1.5478,198.96,198.89,9.75553995]
[1735138695285,1.5478,198.96,198.92,9.75553995]
[1735138695489,9.75553995,199.0,198.93,9.75553995]
[1735138695973,1.5262,199.01,198.94,9.75553995]
[1735138696148,1.5262,199.01,198.95,9.75553995]
[1735138697778,0.12549,199.02,198.95,9.75553995]
[1735138698578,9.75553995,199.03,198.95,9.75553995]
[1735138698769,1.5262,199.06,198.98,9.75553995]
[1735138698964,11.28173995,199.06,198.98,9.75553995]
[1735138699161,0.12549,199.02,198.92,20.0]
[1735138699381,9.88102995,199.02,198.95,9.75553995]
[1735138699782,0.12549,199.02,198.95,9.75553995]
[1735138700077,0.12549,199.02,198.96,9.75553995]
[1735138700754,0.12549,199.03,198.96,9.75553995]
[1735138700956,9.75553995,199.04,198.96,9.75553995]
[1735138703060,1.5262,199.06,198.97,9.75553995]
[1735138703261,9.75553995,199.04,198.97,9.75553995]
[1735138704582,9.75553995,199.05,198.97,9.75553995]
[1735138704764,9.75553995,199.05,198.98,9.75553995]
[1735138705287,9.75553995,199.05,198.97,9.75553995]
[1735138708982,9.75553995,199.05,198.98,9.75553995]
[1735138711372,11.28173995,199.06,198.99,9.75553995]
[1735138711776,1.5262,199.06,199.0,9.75553995]
[1735138712088,11.28173995,199.06,198.99,9.75553995]
[1735138712559,1.5262,199.06,199.0,9.75553995]
[1735138712766,26.95658178,199.07,199.01,9.75553995]
[1735138715986,26.95658178,199.07,198.97,12.5642]
[1735138716177,36.71212173,199.07,199.0,9.75553995]
[1735138720993,0.12549,199.06,198.94,2.33357749]
[1735138721171,0.12549,199.06,198.93,18.764]
[1735138721172,9.75553995,199.02,198.89,9.27216535]
[1735138721370,9.75553995,199.01,198.94,9.75553995]
[1735138721691,9.75553995,199.02,198.95,9.75553995]
[1735138722377,9.88102995,199.03,198.96,9.75553995]
[1735138723499,9.75553995,199.03,198.96,9.75553995]
[1735138723706,11.36713995,199.04,198.97,9.75553995]
[1735138723905,9.75553995,199.02,198.95,9.75553995]
[1735138732600,11.36713995,199.04,198.97,9.75553995]
[1735138734408,9.75553995,199.03,198.96,9.75553995]
[1735138735504,11.36713995,199.04,198.97,9.75553995]
[1735138736103,1.6116,199.04,198.98,9.75553995]
[1735138736486,9.75553995,199.06,198.99,9.75553995]
[1735138736692,9.75553995,199.06,198.95,13.31959333]
[1735138736879,36.71212173,199.07,199.0,9.75553995]
[1735138737279,26.95658178,199.07,199.03,9.75553995]
[1735138737999,26.95658178,199.07,199.04,9.75553995]
[1735138738403,1.5037,199.09,199.04,9.75553995]
[1735138741714,1.5037,199.09,199.03,9.75553995]
[1735138741927,11.25923995,199.09,199.0,12.5625]
[1735138742224,11.25923995,199.09,199.02,9.75553995]
[1735138742720,9.75553995,199.08,199.01,9.75553995]
[1735138743218,11.25923995,199.09,199.02,9.75553995]
[1735138744629,1.5037,199.09,199.03,9.75553995]
[1735138746023,1.5037,199.09,199.04,9.75553995]
[1735138746231,9.75553995,199.13,199.05,9.75553995]
[1735138749943,9.75553995,199.12,199.05,9.75553995]
[1735138750118,9.88102995,199.13,199.05,9.75553995]
[1735138751103,9.75553995,199.12,199.05,9.75553995]
[1735138751304,9.75553995,199.11,199.03,9.75553995]
[1735138753656,9.75553995,199.11,199.04,9.75553995]
[1735138754084,9.75553995,199.12,199.04,9.75553995]
[1735138754580,9.88102995,199.13,199.05,9.75553995]
[1735138757881,28.58517337,199.14,199.02,12.561]
[1735138758098,28.58517337,199.14,199.08,9.75553995]
[1735138759793,28.58517337,199.14,199.09,9.75553995]
[1735138760089,28.58517337,199.14,199.1,9.75553995]
[1735138761386,26.94747337,199.14,199.1,9.75553995]
[1735138762901,26.94747337,199.14,199.09,9.75553995]
[1735138763998,26.94747337,199.14,199.08,9.75553995]
[1735138764197,36.70301332,199.14,199.07,9.75553995]
[1735138765998,9.75553995,199.13,199.02,0.75334429]
[1735138766301,9.75553995,199.13,199.04,9.75553995]
[1735138766302,11.30583995,199.12,199.04,9.75553995]
[1735138769202,9.75553995,199.11,199.04,9.75553995]
[1735138770506,11.30583995,199.12,199.05,9.75553995]
[1735138771104,1.5503,199.12,199.06,9.75553995]
[1735138772324,11.30583995,199.12,199.05,9.75553995]
[1735138773509,1.5503,199.12,199.05,9.75553995]
[1735138773801,1.5503,199.12,199.06,9.75553995]
[1735138778318,1.5503,199.12,199.07,9.75553995]
[1735138781420,1.5503,199.12,199.06,9.75553995]
[1735138784512,1.5503,199.12,199.05,9.75553995]
[1735138784819,9.75553995,199.1,199.03,9.75553995]
[1735138786620,1.5503,199.12,199.05,9.75553995]
[1735138786819,11.30583995,199.12,199.05,9.75553995]
[1735138787037,1.5503,199.12,199.07,9.75553995]
[1735138787399,26.94747337,199.14,199.06,9.75553995]
[1735138787703,36.70301332,199.14,199.07,9.75553995]
[1735138789625,9.75553995,199.13,199.02,7.18511653]
[1735138789934,9.75553995,199.12,199.05,9.75553995]
[1735138790128,9.75553995,199.11,199.01,32.5621]
[1735138790309,9.75553995,199.1,199.02,20.0]
[1735138790506,9.75553995,199.1,199.03,9.75553995]
[1735138791702,9.75553995,199.09,199.02,29.75553995]
[1735138791912,9.75553995,199.08,199.01,20.0]
[1735138792111,9.75553995,199.09,199.01,29.75553995]
[1735138792431,9.75553995,199.09,199.02,9.75553995]
[1735138794029,9.75553995,199.09,199.01,20.0]
[1735138794331,9.75553995,199.09,199.02,9.75553995]
[1735138795035,9.75553995,199.09,199.01,9.75553995]
[1735138795711,9.88102995,199.07,198.95,0.75364347]
[1735138795944,0.12549,199.1,198.94,20.37444773]
[1735138795945,9.75553995,199.05,198.94,20.37444773]
[1735138796241,9.75553995,199.05,198.98,9.75553995]
[1735138796556,17.50482995,199.04,198.93,7.80824773]
[1735138796737,17.50482995,199.04,198.96,9.75553995]
[1735138796738,9.75553995,199.03,198.96,9.75553995]
[1735138796944,7.6238,199.09,199.02,9.75553995]
[1735138797513,17.37933995,199.09,199.02,9.75553995]
[1735138800337,7.6238,199.09,199.02,9.75553995]
[1735138800542,7.6238,199.09,199.03,9.75553995]
[1735138800844,7.6238,199.09,198.98,12.5636]
[1735138800845,7.6238,199.09,199.04,9.75553995]
[1735138802944,7.6238,199.09,199.03,9.75553995]
[1735138803721,1.5881,199.09,199.04,9.75553995]
[1735138804954,1.5881,199.09,199.05,9.75553995]
[1735138805122,9.88102995,199.13,199.05,9.75553995]
[1735138805922,6.0357,199.14,199.07,9.75553995]
[1735138807240,15.79123995,199.14,199.07,9.75553995]
[1735138807426,15.79123995,199.14,199.03,0.75337377]
[1735138807427,9.75553995,199.13,199.06,9.75553995]
[1735138807633,9.75553995,199.13,199.05,9.75553995]
[1735138808853,9.75553995,199.13,199.06,9.75553995]
[1735138810056,9.75553995,199.13,199.05,9.75553995]
[1735138810256,9.75553995,199.12,199.05,9.75553995]
[1735138810437,9.75553995,199.13,199.05,9.75553995]
[1735138811860,15.79123995,199.14,199.06,9.75553995]
[1735138812053,15.79123995,199.14,199.07,9.75553995]
[1735138812437,6.0357,199.14,199.08,9.75553995]
[1735138814137,11.34363995,199.15,199.08,9.75553995]
[1735138818757,11.34363995,199.15,199.03,0.75335181]
[1735138819078,9.75553995,199.14,199.06,9.75553995]
[1735138820561,9.75553995,199.14,199.07,9.75553995]
[1735138822534,1.5881,199.15,199.08,9.75553995]
[1735138822742,1.5881,199.15,199.1,9.75553995]
[1735138823342,1.5881,199.15,199.09,9.75553995]
[1735138824276,9.75553995,199.14,199.07,9.75553995]
[1735138824477,9.75553995,199.14,199.06,9.75553995]
[1735138825073,9.75553995,199.14,199.07,9.75553995]
[1735138826641,9.75553995,199.13,199.06,9.75553995]
[1735138826790,9.75553995,199.14,199.06,9.75553995]
[1735138826976,9.75553995,199.13,199.06,9.75553995]
[1735138827952,0.12549,199.14,199.04,9.75553995]
[1735138828258,9.75553995,199.12,199.05,9.75553995]
[1735138829171,9.75553995,199.13,199.05,9.75553995]
[1735138830980,9.75553995,199.13,199.06,9.75553995]
[1735138833505,9.75553995,199.13,199.05,9.75553995]
[1735138833656,0.12549,199.1,199.01,20.0]
[1735138833865,0.12549,199.08,199.01,9.75553995]
[1735138834189,9.75553995,199.08,199.01,9.75553995]
[1735138834900,11.36853995,199.09,199.02,9.75553995]
[1735138835182,1.613,199.09,199.03,9.75553995]
[1735138837993,1.613,199.09,199.04,9.75553995]
[1735138838691,1.613,199.09,199.03,9.75553995]
[1735138839091,11.36853995,199.09,199.02,9.75553995]
[1735138839587,0.12549,199.08,199.02,9.75553995]
[1735138839911,9.88102995,199.06,198.96,7.80824773]
[1735138840075,9.75553995,199.04,198.97,9.75553995]
[1735138840880,20.12549,199.08,199.0,9.75553995]
[1735138841090,1.613,199.09,199.06,9.75553995]
[1735138841272,6.1658,199.11,199.07,9.75553995]
[1735138841803,6.1658,199.11,199.06,9.75553995]
[1735138842189,9.75553995,199.13,199.06,9.75553995]
[1735138842998,9.75553995,199.13,199.05,9.75553995]
[1735138843369,9.75553995,199.1,199.03,9.75553995]
[1735138844379,0.12549,199.1,199.04,9.75553995]
[1735138844774,8.0311,199.09,199.01,20.0]
[1735138844978,0.12549,199.08,199.02,9.75553995]
[1735138847594,0.12549,199.08,199.01,9.75553995]
[1735138848994,9.88102995,199.08,198.94,16.79951491]
[1735138849291,0.12549,199.06,199.0,9.75553995]
[1735138850685,0.12549,199.05,198.99,9.75553995]
[1735138850990,9.88102995,199.05,198.98,9.75553995]
[1735138854593,0.12549,199.03,198.96,9.75553995]
[1735138854789,9.88102995,199.03,198.96,9.75553995]
[1735138856873,0.12549,199.03,198.92,12.5678]
[1735138857089,9.88102995,199.03,198.96,9.75553995]
[1735138859393,0.12549,199.01,198.94,9.75553995]
[1735138860902,17.48293995,199.04,198.97,9.75553995]
[1735138861210,7.7274,199.04,198.97,9.75553995]
[1735138861398,0.12549,199.03,198.98,9.75553995]
[1735138862481,7.7274,199.04,198.99,9.75553995]
[1735138862691,7.7274,199.04,199.0,9.75553995]
[1735138862888,1.5023,199.04,199.01,9.75553995]
[1735138863076,7.8585,199.09,199.03,9.75553995]
[1735138863281,7.8585,199.09,199.04,9.75553995]
[1735138863898,0.12549,199.08,199.03,9.75553995]
[1735138864089,0.12549,199.08,199.04,9.75553995]
[1735138864608,0.12549,199.08,199.03,9.75553995]
[1735138864906,0.12549,199.08,199.04,9.75553995]
[1735138865500,7.8585,199.09,199.04,9.75553995]
[1735138865686,7.8585,199.09,199.05,9.75553995]
[1735138866705,7.8585,199.09,199.04,9.75553995]
[1735138868908,7.8585,199.09,199.02,9.75553995]
[1735138869205,7.8585,199.09,199.03,9.75553995]
[1735138870501,0.12549,199.08,199.0,12.5622]
[1735138870693,0.12549,199.08,199.02,9.75553995]
[1735138872203,0.12549,199.08,199.01,9.75553995]
[1735138874911,9.88102995,199.08,199.01,9.75553995]
[1735138875083,9.75553995,199.06,198.94,12.5665]
[1735138875289,23.776884,199.07,198.97,9.75553995]
[1735138875290,9.75553995,199.04,198.97,9.75553995]
[1735138875490,9.75553995,199.04,198.96,9.75553995]
[1735138875915,9.75553995,199.02,198.93,7.80824773]
[1735138876096,9.75553995,199.02,198.93,9.75553995]
[1735138876097,9.75553995,199.01,198.93,9.75553995]
[1735138876301,9.75553995,198.99,198.92,9.75553995]
[1735138876495,23.776884,199.0,198.91,9.75553995]
[1735138876496,9.75553995,198.98,198.91,9.75553995]
[1735138876702,0.12549,198.97,198.91,9.75553995]
[1735138877816,0.12549,198.95,198.89,9.75553995]
[1735138878011,9.88102995,198.95,198.88,9.75553995]
[1735138880315,9.75553995,198.92,198.81,1.6537]
[1735138880520,33.65791395,198.91,198.84,9.75553995]
[1735138880897,9.75553995,198.93,198.86,9.75553995]
[1735138881927,0.12549,198.92,198.86,9.75553995]
[1735138882221,0.12549,198.92,198.87,9.75553995]
[1735138882432,0.12549,198.93,198.87,9.75553995]
[1735138884898,9.88102995,198.93,198.86,9.75553995]
[1735138885102,0.12549,198.9,198.84,9.75553995]
[1735138885304,9.88102995,198.9,198.83,9.75553995]
[1735138886716,9.88102995,198.9,198.84,9.75553995]
[1735138888236,0.12549,198.9,198.84,9.75553995]
[1735138889229,0.12549,198.9,198.85,9.75553995]
[1735138890126,9.88102995,198.92,198.85,9.75553995]
[1735138890640,0.12549,198.9,198.85,9.75553995]
[1735138898128,0.12549,198.9,198.84,9.75553995]
[1735138905048,7.8388,198.94,198.86,9.75553995]
[1735138905223,0.12549,198.92,198.86,9.75553995]
[1735138905425,0.12549,198.9,198.84,9.75553995]
[1735138906045,23.776884,198.93,198.84,9.75553995]
[1735138906347,0.12549,198.9,198.84,9.75553995]
[1735138906529,0.12549,198.9,198.85,9.75553995]
[1735138906716,0.12549,198.91,198.85,9.75553995]
[1735138908444,0.12549,198.9,198.84,9.75553995]
[1735138909944,9.75553995,198.9,198.78,12.5767]
[1735138910155,0.12549,198.89,198.83,9.75553995]
[1735138911748,0.12549,198.85,198.75,12.5784]
[1735138911916,9.88102995,198.85,198.78,9.75553995]
[1735138912539,0.12549,198.83,198.78,9.75553995]
[1735138912728,9.88102995,198.83,198.76,9.75553995]
[1735138913116,0.12549,198.83,198.77,9.75553995]
[1735138913841,0.12549,198.83,198.78,9.75553995]
[1735138914338,0.12549,198.83,198.77,9.75553995]
[1735138916231,0.12549,198.82,198.76,9.75553995]
[1735138917653,0.12549,198.82,198.75,20.0]
[1735138917832,0.12549,198.82,198.76,9.75553995]
[1735138918747,0.12549,198.82,198.72,14.2427]
[1735138918926,0.12549,198.82,198.76,9.75553995]
[1735138919519,0.12549,198.82,198.75,9.75553995]
[1735138919926,33.65791395,198.81,198.69,12.5822]
[1735138920133,0.12549,198.79,198.73,9.75553995]
[1735138920452,0.12549,198.79,198.72,9.75553995]
[1735138920453,9.88102995,198.79,198.72,9.75553995]
[1735138920632,9.88102995,198.8,198.73,9.75553995]
[1735138921036,0.12549,198.8,198.74,9.75553995]
[1735138922047,0.12549,198.8,198.73,9.75553995]
[1735138922251,9.88102995,198.8,198.73,9.75553995]
[1735138924354,9.88102995,198.8,198.72,9.75553995]
[1735138924549,9.88102995,198.8,198.71,9.75553995]
[1735138924550,0.12549,198.78,198.71,9.75553995]
[1735138924739,9.88102995,198.78,198.71,9.75553995]
[1735138925552,0.12549,198.76,198.63,4.43735881]
[1735138925727,0.12549,198.72,198.66,9.75553995]
[1735138926125,0.12549,198.72,198.67,9.75553995]
[1735138926343,0.12549,198.72,198.68,9.75553995]
[1735138926534,0.12549,198.74,198.68,9.75553995]
[1735138927063,9.75553995,198.76,198.68,9.75553995]
[1735138927231,0.12549,198.75,198.68,9.75553995]
[1735138927852,0.12549,198.75,198.69,9.75553995]
[1735138928741,0.12549,198.75,198.68,9.75553995]
[1735138928950,0.12549,198.73,198.67,9.75553995]
[1735138930765,0.12549,198.74,198.68,9.75553995]
[1735138931060,0.12549,198.74,198.69,9.75553995]
[1735138931559,9.88102995,198.75,198.65,12.5849]
[1735138931736,9.88102995,198.75,198.68,9.75553995]
[1735138933260,9.88102995,198.75,198.67,9.75553995]
[1735138934039,0.12549,198.73,198.67,9.75553995]
[1735138934464,33.65791395,198.73,198.63,1.6622]
[1735138934638,9.88102995,198.71,198.64,9.75553995]
[1735138934838,9.88102995,198.68,198.54,14.18841818]
[1735138935042,0.12549,198.66,198.6,9.75553995]
[1735138936161,0.12549,198.66,198.54,0.75505691]
[1735138936365,0.12549,198.65,198.59,9.75553995]
[1735138937690,9.88102995,198.65,198.58,9.75553995]
[1735138939382,9.88102995,198.65,198.55,12.5912]
[1735138939383,0.12549,198.65,198.6,9.75553995]
[1735138939676,23.776884,198.68,198.63,9.75553995]
[1735138940479,0.12549,198.67,198.62,9.75553995]
[1735138940851,0.12549,198.67,198.61,9.75553995]
[1735138942072,0.12549,198.65,198.6,9.75553995]
[1735138942251,0.12549,198.65,198.59,9.75553995]
[1735138942452,0.12549,198.65,198.58,9.75553995]
[1735138942453,9.88102995,198.65,198.58,9.75553995]
[1735138943468,9.88102995,198.65,198.57,9.75553995]
[1735138943957,0.12549,198.63,198.57,9.75553995]
[1735138944968,23.902374,198.64,198.57,9.75553995]
[1735138946574,23.902374,198.64,198.53,1.6144]
[1735138946770,23.902374,198.64,198.57,9.75553995]
[1735138946954,33.65791395,198.64,198.56,9.75553995]
[1735138947954,0.12549,198.62,198.52,12.593]
[1735138948154,23.902374,198.62,198.56,9.75553995]
[1735138949680,23.902374,198.62,198.57,9.75553995]
[1735138952986,23.902374,198.62,198.52,12.593]
[1735138953176,23.902374,198.62,198.57,9.75553995]
[1735138954682,23.902374,198.62,198.49,13.3501803]
[1735138954866,40.18501395,198.62,198.55,9.75553995]